[Event "Titled Tuesday Blitz March 01 Early 2022"]
[White "Mkrtchyan, Mariam"]
[Black "Carlsson, Ludvig"]
[WhiteFideId "13310828"]
[BlackFideId "1727010"]
[WhiteElo "1984"]
[BlackElo "2178"]
[Result "0-1"]
[Round "03"]
[TimeControl "180+1"]
[Date "2022.03.01"]
[WhiteClock "0:00:19"]
[BlackClock "0:01:15"]

1. d4 {[%clk 0:03:00]}  d5 {[%clk 0:02:58]} 2. Nf3 {[%clk 0:03:00]}  Nf6 {[%clk 0:02:55]} 3. c4 {[%clk 0:03:00]}  e6 {[%clk 0:02:54]} 4. g3 {[%clk 0:03:00]}  Bb4+ {[%clk 0:02:52]} 5. Bd2 {[%clk 0:02:59]}  Be7 {[%clk 0:02:53]} 6. Bg2 {[%clk 0:02:59]}  O-O {[%clk 0:02:52]} 7. O-O {[%clk 0:02:59]}  b6 {[%clk 0:02:51]} 8. cxd5 {[%clk 0:02:56]}  exd5 {[%clk 0:02:51]} 9. Nc3 {[%clk 0:02:55]}  Bb7 {[%clk 0:02:51]} 10. Ne5 {[%clk 0:02:54]}  Nbd7 {[%clk 0:02:48]} 11. Bf4 {[%clk 0:02:49]}  Bd6 {[%clk 0:02:43]} 12. Qa4 {[%clk 0:02:46]}  Nb8 {[%clk 0:02:18]} 13. Rac1 {[%clk 0:02:42]}  Re8 {[%clk 0:02:12]} 14. Rfd1 {[%clk 0:02:40]}  a6 {[%clk 0:02:11]} 15. Qb3 {[%clk 0:02:32]}  c6 {[%clk 0:02:09]} 16. Na4 {[%clk 0:02:18]}  b5 {[%clk 0:02:09]} 17. Nc5 {[%clk 0:02:10]}  Bxc5 {[%clk 0:02:09]} 18. Rxc5 {[%clk 0:02:09]}  Nbd7 {[%clk 0:02:08]} 19. Nxd7 {[%clk 0:02:01]}  Qxd7 {[%clk 0:02:07]} 20. Bf3 {[%clk 0:01:55]}  Ne4 {[%clk 0:02:05]} 21. Rc2 {[%clk 0:01:52]}  Re6 {[%clk 0:02:03]} 22. Bg4 {[%clk 0:01:50]}  Rae8 {[%clk 0:02:01]} 23. Bxe6 {[%clk 0:01:44]}  Rxe6 {[%clk 0:02:01]} 24. Qf3 {[%clk 0:01:38]}  g5 {[%clk 0:01:57]} 25. Bc1 {[%clk 0:01:34]}  Rf6 {[%clk 0:01:57]} 26. Re1 {[%clk 0:01:14]}  Rxf3 {[%clk 0:01:53]} 27. exf3 {[%clk 0:01:14]}  Nd6 {[%clk 0:01:45]} 28. Rce2 {[%clk 0:01:08]}  Nf5 {[%clk 0:01:41]} 29. Kg2 {[%clk 0:00:58]}  h6 {[%clk 0:01:33]} 30. Rd1 {[%clk 0:00:51]}  Bc8 {[%clk 0:01:32]} 31. b3 {[%clk 0:00:41]}  Kg7 {[%clk 0:01:29]} 32. f4 {[%clk 0:00:39]}  Nh4+ {[%clk 0:01:17]} 33. Kh1 {[%clk 0:00:28]}  Qh3 {[%clk 0:01:18]} 34. Rg1 {[%clk 0:00:26]}  Bg4 {[%clk 0:01:15]} 35. gxh4 {[%clk 0:00:20]}  Bf3+ {[%clk 0:01:15]} 36. Rg2 {[%clk 0:00:19]}  Qxg2# {[%clk 0:01:15]} 0-1


[Site "https://www.chess.com"]

[Event "Titled Tuesday Blitz March 01 Early 2022"]
[White "Moreira, Ronaldo Alonso"]
[Black "Kushko, Dmitriy"]
[WhiteFideId "2110547"]
[BlackFideId "14162261"]
[WhiteElo "2037"]
[BlackElo "2225"]
[Result "0-1"]
[Round "03"]
[TimeControl "180+1"]
[Date "2022.03.01"]
[WhiteClock "0:00:02"]
[BlackClock "0:01:25"]

1. d4 {[%clk 0:03:00]}  g6 {[%clk 0:02:59]} 2. c4 {[%clk 0:03:01]}  Bg7 {[%clk 0:02:59]} 3. Nc3 {[%clk 0:03:01]}  Nf6 {[%clk 0:02:59]} 4. e4 {[%clk 0:02:59]}  d6 {[%clk 0:02:59]} 5. Nf3 {[%clk 0:03:00]}  O-O {[%clk 0:02:59]} 6. h3 {[%clk 0:03:01]}  e5 {[%clk 0:02:59]} 7. d5 {[%clk 0:03:01]}  a5 {[%clk 0:02:59]} 8. Be3 {[%clk 0:03:00]}  Na6 {[%clk 0:02:58]} 9. g4 {[%clk 0:02:57]}  Nd7 {[%clk 0:02:58]} 10. a3 {[%clk 0:02:57]}  Nb6 {[%clk 0:02:50]} 11. Be2 {[%clk 0:02:34]}  f5 {[%clk 0:02:45]} 12. gxf5 {[%clk 0:02:30]}  gxf5 {[%clk 0:02:46]} 13. Rg1 {[%clk 0:02:21]}  Kh8 {[%clk 0:02:36]} 14. Bg5 {[%clk 0:02:13]}  Bf6 {[%clk 0:02:24]} 15. Qd2 {[%clk 0:01:40]}  Nc5 {[%clk 0:02:21]} 16. Qc2 {[%clk 0:01:06]}  fxe4 {[%clk 0:02:09]} 17. Nxe4 {[%clk 0:00:58]}  Bf5 {[%clk 0:02:09]} 18. Bd3 {[%clk 0:00:42]}  Bxg5 {[%clk 0:01:51]} 19. Nfxg5 {[%clk 0:00:38]}  Nxd3+ {[%clk 0:01:49]} 20. Qxd3 {[%clk 0:00:37]}  Qe7 {[%clk 0:01:44]} 21. O-O-O {[%clk 0:00:28]}  Rg8 {[%clk 0:01:36]} 22. Qc3 {[%clk 0:00:20]}  Rg6 {[%clk 0:01:27]} 23. Rde1 {[%clk 0:00:05]}  Rag8 {[%clk 0:01:26]} 24. Rh1 {[%clk 0:00:04]}  Rxg5 {[%clk 0:01:25]} 25. Nxg5 {[%clk 0:00:05]}  Qxg5+ {[%clk 0:01:25]} 26. Re3 {[%clk 0:00:02]}  Qf4 {[%clk 0:01:25]} 0-1


[Site "https://www.chess.com"]

[Event "Titled Tuesday Blitz March 01 Early 2022"]
[White "Mosadeghpour, Masoud"]
[Black "Budrewicz, Krzysztof"]
[WhiteFideId "12519278"]
[BlackFideId "1127950"]
[WhiteElo "2395"]
[BlackElo "2248"]
[Result "1-0"]
[Round "03"]
[TimeControl "180+1"]
[Date "2022.03.01"]
[WhiteClock "0:00:35"]
[BlackClock "0:00:09"]

1. e4 {[%clk 0:03:00]}  c5 {[%clk 0:02:59]} 2. d4 {[%clk 0:02:57]}  cxd4 {[%clk 0:02:59]} 3. c3 {[%clk 0:02:57]}  d3 {[%clk 0:02:57]} 4. Bxd3 {[%clk 0:02:56]}  Nc6 {[%clk 0:02:57]} 5. Nf3 {[%clk 0:02:57]}  d6 {[%clk 0:02:56]} 6. O-O {[%clk 0:02:57]}  Nf6 {[%clk 0:02:56]} 7. Qe2 {[%clk 0:02:57]}  e5 {[%clk 0:02:57]} 8. h3 {[%clk 0:02:55]}  h6 {[%clk 0:02:53]} 9. Rd1 {[%clk 0:02:54]}  Be7 {[%clk 0:02:52]} 10. Na3 {[%clk 0:02:49]}  O-O {[%clk 0:02:51]} 11. Nc2 {[%clk 0:02:49]}  Be6 {[%clk 0:02:51]} 12. c4 {[%clk 0:02:49]}  Rc8 {[%clk 0:02:48]} 13. b3 {[%clk 0:02:50]}  a6 {[%clk 0:02:47]} 14. Ba3 {[%clk 0:02:47]}  Qc7 {[%clk 0:02:40]} 15. Rac1 {[%clk 0:02:46]}  Nh5 {[%clk 0:02:38]} 16. Ne3 {[%clk 0:02:37]}  Nf4 {[%clk 0:02:38]} 17. Qf1 {[%clk 0:02:37]}  Qa5 {[%clk 0:02:35]} 18. Nc2 {[%clk 0:02:25]}  Rfd8 {[%clk 0:02:30]} 19. Qe1 {[%clk 0:02:16]}  Qc7 {[%clk 0:02:20]} 20. Bf1 {[%clk 0:02:13]}  Qb8 {[%clk 0:02:19]} 21. Ne3 {[%clk 0:02:13]}  b5 {[%clk 0:02:17]} 22. cxb5 {[%clk 0:01:57]}  axb5 {[%clk 0:02:17]} 23. Nd5 {[%clk 0:01:57]}  Bxd5 {[%clk 0:01:36]} 24. exd5 {[%clk 0:01:58]}  b4 {[%clk 0:01:37]} 25. Bb2 {[%clk 0:01:27]}  Na5 {[%clk 0:01:30]} 26. g3 {[%clk 0:01:25]}  Ng6 {[%clk 0:01:29]} 27. Qe4 {[%clk 0:01:24]}  Bf8 {[%clk 0:01:11]} 28. h4 {[%clk 0:01:23]}  Ne7 {[%clk 0:01:11]} 29. Bh3 {[%clk 0:01:20]}  Rxc1 {[%clk 0:01:09]} 30. Rxc1 {[%clk 0:01:21]}  Qb7 {[%clk 0:01:08]} 31. Rd1 {[%clk 0:01:16]}  g6 {[%clk 0:01:08]} 32. h5 {[%clk 0:01:14]}  g5 {[%clk 0:00:56]} 33. Nxe5 {[%clk 0:01:06]}  f5 {[%clk 0:00:36]} 34. Bxf5 {[%clk 0:00:40]}  Nxf5 {[%clk 0:00:36]} 35. Ng4 {[%clk 0:00:36]}  Bg7 {[%clk 0:00:22]} 36. Qxf5 {[%clk 0:00:35]}  Bxb2 {[%clk 0:00:20]} 37. Nxh6+ {[%clk 0:00:35]}  Kg7 {[%clk 0:00:15]} 38. Qxg5+ {[%clk 0:00:34]}  Kh7 {[%clk 0:00:16]} 39. Qg6+ {[%clk 0:00:34]}  Kh8 {[%clk 0:00:12]} 40. Nf7+ {[%clk 0:00:34]}  Qxf7 {[%clk 0:00:09]} 41. Qxf7 {[%clk 0:00:35]} 1-0


[Site "https://www.chess.com"]

[Event "Titled Tuesday Blitz March 01 Early 2022"]
[White "Muradli, Mahammad"]
[Black "Alavkin, Arseny"]
[WhiteFideId "13409301"]
[BlackFideId "4120612"]
[WhiteElo "2645"]
[BlackElo "2391"]
[Result "0-1"]
[Round "03"]
[TimeControl "180+1"]
[Date "2022.03.01"]
[WhiteClock "0:00:02"]
[BlackClock "0:00:32"]

1. g3 {[%clk 0:03:00]}  d5 {[%clk 0:02:50]} 2. Bg2 {[%clk 0:02:58]}  Nf6 {[%clk 0:02:49]} 3. Nf3 {[%clk 0:02:57]}  Bg4 {[%clk 0:02:50]} 4. c4 {[%clk 0:02:56]}  c6 {[%clk 0:02:49]} 5. Ne5 {[%clk 0:02:50]}  Bh5 {[%clk 0:02:49]} 6. cxd5 {[%clk 0:02:47]}  cxd5 {[%clk 0:02:50]} 7. Nc3 {[%clk 0:02:44]}  Nc6 {[%clk 0:02:50]} 8. Qa4 {[%clk 0:02:36]}  Rc8 {[%clk 0:02:38]} 9. Nb5 {[%clk 0:02:14]}  Qb6 {[%clk 0:02:14]} 10. d3 {[%clk 0:01:33]}  a6 {[%clk 0:02:10]} 11. Nc3 {[%clk 0:01:32]}  e6 {[%clk 0:02:05]} 12. O-O {[%clk 0:01:24]}  Bc5 {[%clk 0:01:55]} 13. Nxc6 {[%clk 0:00:55]}  Qxc6 {[%clk 0:01:56]} 14. Qh4 {[%clk 0:00:56]}  Bg6 {[%clk 0:01:51]} 15. Bg5 {[%clk 0:00:54]}  Be7 {[%clk 0:01:48]} 16. Rac1 {[%clk 0:00:54]}  Qd7 {[%clk 0:01:27]} 17. e4 {[%clk 0:00:53]}  d4 {[%clk 0:01:25]} 18. Ne2 {[%clk 0:00:49]}  O-O {[%clk 0:01:24]} 19. Nf4 {[%clk 0:00:17]}  h6 {[%clk 0:01:08]} 20. Bxf6 {[%clk 0:00:08]}  Bxf6 {[%clk 0:01:06]} 21. Qg4 {[%clk 0:00:09]}  Bh7 {[%clk 0:01:06]} 22. Nh5 {[%clk 0:00:09]}  Bg5 {[%clk 0:00:59]} 23. h4 {[%clk 0:00:05]}  f5 {[%clk 0:00:58]} 24. Rxc8 {[%clk 0:00:02]}  fxg4 {[%clk 0:00:48]} 25. Rxf8+ {[%clk 0:00:02]}  Kxf8 {[%clk 0:00:48]} 26. hxg5 {[%clk 0:00:03]}  hxg5 {[%clk 0:00:49]} 27. f3 {[%clk 0:00:04]}  gxf3 {[%clk 0:00:50]} 28. Bxf3 {[%clk 0:00:04]}  Kg8 {[%clk 0:00:46]} 29. Bg4 {[%clk 0:00:04]}  Bg6 {[%clk 0:00:46]} 30. Rf6 {[%clk 0:00:03]}  Bf7 {[%clk 0:00:36]} 31. Rf2 {[%clk 0:00:03]}  Qe8 {[%clk 0:00:35]} 32. Rxf7 {[%clk 0:00:01]}  Kxf7 {[%clk 0:00:33]} 33. Be2 {[%clk 0:00:02]}  Qa4 {[%clk 0:00:32]} 0-1


[Site "https://www.chess.com"]

[Event "Titled Tuesday Blitz March 01 Early 2022"]
[White "Obolenskikh, Dmitry"]
[Black "Vusatiuk, Vladimir"]
[WhiteFideId "4156013"]
[BlackFideId "14118610"]
[WhiteElo "2512"]
[BlackElo "2157"]
[Result "1-0"]
[Round "03"]
[TimeControl "180+1"]
[Date "2022.03.01"]
[WhiteClock "0:00:46"]
[BlackClock "0:00:11"]

1. e4 {[%clk 0:03:00]}  Nc6 {[%clk 0:03:00]} 2. Nf3 {[%clk 0:03:00]}  f5 {[%clk 0:02:59]} 3. exf5 {[%clk 0:03:00]}  d5 {[%clk 0:03:00]} 4. d4 {[%clk 0:02:58]}  Bxf5 {[%clk 0:03:00]} 5. Bd3 {[%clk 0:02:58]}  e6 {[%clk 0:02:48]} 6. Bxf5 {[%clk 0:02:57]}  exf5 {[%clk 0:02:49]} 7. Bf4 {[%clk 0:02:57]}  Bd6 {[%clk 0:02:41]} 8. Qd2 {[%clk 0:02:56]}  Nf6 {[%clk 0:02:39]} 9. O-O {[%clk 0:02:55]}  Ne4 {[%clk 0:02:36]} 10. Qc1 {[%clk 0:02:55]}  O-O {[%clk 0:02:29]} 11. Nc3 {[%clk 0:02:54]}  Bxf4 {[%clk 0:02:21]} 12. Qxf4 {[%clk 0:02:54]}  g5 {[%clk 0:02:20]} 13. Qe3 {[%clk 0:02:48]}  g4 {[%clk 0:02:03]} 14. Nxe4 {[%clk 0:02:12]}  fxe4 {[%clk 0:01:46]} 15. Nd2 {[%clk 0:02:08]}  Qf6 {[%clk 0:01:41]} 16. c3 {[%clk 0:01:59]}  Rae8 {[%clk 0:01:39]} 17. Rae1 {[%clk 0:01:58]}  Qg7 {[%clk 0:01:30]} 18. Qg3 {[%clk 0:01:47]}  h5 {[%clk 0:01:17]} 19. Qh4 {[%clk 0:01:38]}  Qh6 {[%clk 0:01:12]} 20. Nb3 {[%clk 0:01:18]}  Ne7 {[%clk 0:01:08]} 21. f3 {[%clk 0:01:08]}  Nf5 {[%clk 0:00:54]} 22. Qf2 {[%clk 0:01:08]}  g3 {[%clk 0:00:51]} 23. Qc2 {[%clk 0:01:03]}  gxh2+ {[%clk 0:00:47]} 24. Kxh2 {[%clk 0:01:03]}  Ne3 {[%clk 0:00:39]} 25. Qc1 {[%clk 0:01:00]}  Nxf1+ {[%clk 0:00:39]} 26. Rxf1 {[%clk 0:01:01]}  Qxc1 {[%clk 0:00:39]} 27. Nxc1 {[%clk 0:01:01]}  exf3 {[%clk 0:00:40]} 28. gxf3 {[%clk 0:01:01]}  Re6 {[%clk 0:00:35]} 29. Rf2 {[%clk 0:00:58]}  Kh7 {[%clk 0:00:33]} 30. Nd3 {[%clk 0:00:58]}  Rf5 {[%clk 0:00:23]} 31. Ne5 {[%clk 0:00:55]}  c5 {[%clk 0:00:23]} 32. f4 {[%clk 0:00:55]}  cxd4 {[%clk 0:00:23]} 33. cxd4 {[%clk 0:00:56]}  Ra6 {[%clk 0:00:19]} 34. b3 {[%clk 0:00:55]}  Ra4 {[%clk 0:00:19]} 35. bxa4 {[%clk 0:00:54]}  Rf6 {[%clk 0:00:11]} 36. Kg3 {[%clk 0:00:52]}  Ra6 {[%clk 0:00:11]} 37. Kh4 {[%clk 0:00:46]}  Rxa4 {[%clk 0:00:10]} 38. Kxh5 {[%clk 0:00:47]}  Rxd4 {[%clk 0:00:10]} 39. f5 {[%clk 0:00:47]}  Kg7 {[%clk 0:00:11]} 40. f6+ {[%clk 0:00:47]}  Kf8 {[%clk 0:00:11]} 41. f7 {[%clk 0:00:46]} 1-0


[Site "https://www.chess.com"]

[Event "Titled Tuesday Blitz March 01 Early 2022"]
[White "Odegov, Artem"]
[Black "Rudzinska, Michalina"]
[WhiteFideId "34183644"]
[BlackFideId "1172883"]
[WhiteElo "2277"]
[BlackElo "1904"]
[Result "0-1"]
[Round "03"]
[TimeControl "180+1"]
[Date "2022.03.01"]
[WhiteClock "0:00:19"]
[BlackClock "0:00:09"]

1. d4 {[%clk 0:03:00]}  d6 {[%clk 0:02:55]} 2. Nf3 {[%clk 0:02:59]}  Nf6 {[%clk 0:02:54]} 3. c4 {[%clk 0:02:59]}  g6 {[%clk 0:02:54]} 4. Nc3 {[%clk 0:02:58]}  Bg7 {[%clk 0:02:55]} 5. e4 {[%clk 0:02:58]}  O-O {[%clk 0:02:54]} 6. Be2 {[%clk 0:02:58]}  e5 {[%clk 0:02:53]} 7. O-O {[%clk 0:02:58]}  Nc6 {[%clk 0:02:53]} 8. d5 {[%clk 0:02:57]}  Ne7 {[%clk 0:02:54]} 9. b4 {[%clk 0:02:57]}  Nh5 {[%clk 0:02:50]} 10. Re1 {[%clk 0:02:53]}  f5 {[%clk 0:02:48]} 11. Ng5 {[%clk 0:02:52]}  Nf4 {[%clk 0:02:46]} 12. Bxf4 {[%clk 0:02:52]}  exf4 {[%clk 0:02:47]} 13. Rc1 {[%clk 0:02:53]}  h6 {[%clk 0:02:40]} 14. Ne6 {[%clk 0:02:51]}  Bxe6 {[%clk 0:02:41]} 15. dxe6 {[%clk 0:02:52]}  fxe4 {[%clk 0:02:39]} 16. Nxe4 {[%clk 0:02:51]}  Qc8 {[%clk 0:02:38]} 17. Bg4 {[%clk 0:02:50]}  Nf5 {[%clk 0:02:33]} 18. c5 {[%clk 0:02:48]}  Qxe6 {[%clk 0:02:13]} 19. Nxd6 {[%clk 0:02:41]}  Qxa2 {[%clk 0:02:13]} 20. Re2 {[%clk 0:02:40]}  Qa6 {[%clk 0:02:02]} 21. Qd5+ {[%clk 0:02:28]}  Kh7 {[%clk 0:01:58]} 22. b5 {[%clk 0:02:22]}  Qa3 {[%clk 0:01:54]} 23. Rd1 {[%clk 0:02:07]}  cxd6 {[%clk 0:01:53]} 24. cxd6 {[%clk 0:02:08]}  Rad8 {[%clk 0:01:51]} 25. d7 {[%clk 0:02:03]}  b6 {[%clk 0:01:25]} 26. h4 {[%clk 0:01:56]}  Qc5 {[%clk 0:01:23]} 27. h5 {[%clk 0:01:11]}  Nd4 {[%clk 0:01:19]} 28. Rxd4 {[%clk 0:00:48]}  Qxd4 {[%clk 0:01:15]} 29. hxg6+ {[%clk 0:00:47]}  Kh8 {[%clk 0:01:14]} 30. Qxd4 {[%clk 0:00:39]}  Bxd4 {[%clk 0:01:15]} 31. Re7 {[%clk 0:00:39]}  Bg7 {[%clk 0:00:52]} 32. Be6 {[%clk 0:00:38]}  f3 {[%clk 0:00:16]} 33. g3 {[%clk 0:00:36]}  Ra8 {[%clk 0:00:13]} 34. Bf7 {[%clk 0:00:31]}  Bf6 {[%clk 0:00:11]} 35. Re3 {[%clk 0:00:30]}  Kg7 {[%clk 0:00:12]} 36. Bd5 {[%clk 0:00:27]}  Rad8 {[%clk 0:00:11]} 37. Bc6 {[%clk 0:00:27]}  Kxg6 {[%clk 0:00:11]} 38. Rxf3 {[%clk 0:00:27]}  Be7 {[%clk 0:00:11]} 39. Rd3 {[%clk 0:00:19]}  Rf6 {[%clk 0:00:10]} 40. Kg2 {[%clk 0:00:19]}  Rd6 {[%clk 0:00:10]} 41. Re3 {[%clk 0:00:19]}  Bf6 {[%clk 0:00:08]} 42. f4 {[%clk 0:00:15]}  R8xd7 {[%clk 0:00:07]} 43. Kf3 {[%clk 0:00:15]}  Rxc6 {[%clk 0:00:06]} 44. bxc6 {[%clk 0:00:15]}  Rc7 {[%clk 0:00:06]} 45. Re6 {[%clk 0:00:16]}  Kf7 {[%clk 0:00:02]} 46. f5 {[%clk 0:00:15]}  a5 {[%clk 0:00:03]} 47. Ke4 {[%clk 0:00:14]}  a4 {[%clk 0:00:03]} 48. Kd5 {[%clk 0:00:14]}  a3 {[%clk 0:00:03]} 49. Re2 {[%clk 0:00:13]}  Be7 {[%clk 0:00:02]} 50. g4 {[%clk 0:00:13]}  Ra7 {[%clk 0:00:02]} 51. f6 {[%clk 0:00:12]}  Kxf6 {[%clk 0:00:02]} 52. Rf2+ {[%clk 0:00:12]}  Kg7 {[%clk 0:00:02]} 53. Ke6 {[%clk 0:00:12]}  a2 {[%clk 0:00:02]} 54. Rxa2 {[%clk 0:00:13]}  Rxa2 {[%clk 0:00:03]} 55. Kxe7 {[%clk 0:00:11]}  Rc2 {[%clk 0:00:04]} 56. Kd6 {[%clk 0:00:12]}  Rxc6+ {[%clk 0:00:04]} 57. Kxc6 {[%clk 0:00:13]}  Kg6 {[%clk 0:00:04]} 58. Kxb6 {[%clk 0:00:13]}  Kg5 {[%clk 0:00:04]} 59. Kc5 {[%clk 0:00:14]}  Kxg4 {[%clk 0:00:05]} 60. Kd4 {[%clk 0:00:15]}  Kf3 {[%clk 0:00:05]} 61. Ke5 {[%clk 0:00:16]}  h5 {[%clk 0:00:05]} 62. Kf5 {[%clk 0:00:16]}  h4 {[%clk 0:00:06]} 63. Kg5 {[%clk 0:00:17]}  h3 {[%clk 0:00:07]} 64. Kh4 {[%clk 0:00:18]}  h2 {[%clk 0:00:08]} 65. Kh3 {[%clk 0:00:19]}  h1=Q# {[%clk 0:00:09]} 0-1


[Site "https://www.chess.com"]

[Event "Titled Tuesday Blitz March 01 Early 2022"]
[White "Ohanyan, Emin"]
[Black "Dubov, Daniil"]
[WhiteFideId "13312022"]
[BlackFideId "24126055"]
[WhiteElo "2752"]
[BlackElo "3015"]
[Result "1-0"]
[Round "03"]
[TimeControl "180+1"]
[Date "2022.03.01"]
[WhiteClock "0:00:04"]
[BlackClock "0:00:02"]

1. e4 {[%clk 0:02:51]}  c5 {[%clk 0:02:58]} 2. Nf3 {[%clk 0:02:51]}  d6 {[%clk 0:02:57]} 3. d4 {[%clk 0:02:50]}  cxd4 {[%clk 0:02:58]} 4. Nxd4 {[%clk 0:02:51]}  Nf6 {[%clk 0:02:58]} 5. Nc3 {[%clk 0:02:52]}  Nc6 {[%clk 0:02:58]} 6. Bg5 {[%clk 0:02:50]}  g6 {[%clk 0:02:58]} 7. Bxf6 {[%clk 0:02:34]}  exf6 {[%clk 0:02:57]} 8. Bc4 {[%clk 0:02:29]}  Bg7 {[%clk 0:02:53]} 9. Ndb5 {[%clk 0:02:16]}  O-O {[%clk 0:02:51]} 10. Qxd6 {[%clk 0:02:04]}  f5 {[%clk 0:02:42]} 11. Qxd8 {[%clk 0:01:51]}  Rxd8 {[%clk 0:02:40]} 12. O-O {[%clk 0:01:41]}  fxe4 {[%clk 0:02:32]} 13. Nxe4 {[%clk 0:01:37]}  Bxb2 {[%clk 0:02:30]} 14. Rab1 {[%clk 0:01:37]}  Be5 {[%clk 0:02:28]} 15. f4 {[%clk 0:01:31]}  Bd4+ {[%clk 0:01:58]} 16. Kh1 {[%clk 0:01:28]}  Na5 {[%clk 0:01:21]} 17. Bb3 {[%clk 0:00:21]}  Nxb3 {[%clk 0:01:17]} 18. cxb3 {[%clk 0:00:14]}  Bf5 {[%clk 0:00:52]} 19. Rbe1 {[%clk 0:00:14]}  Rd7 {[%clk 0:00:27]} 20. g4 {[%clk 0:00:06]}  Bxe4+ {[%clk 0:00:18]} 21. Rxe4 {[%clk 0:00:07]}  Bb6 {[%clk 0:00:18]} 22. Re2 {[%clk 0:00:06]}  Rad8 {[%clk 0:00:17]} 23. Nc3 {[%clk 0:00:06]}  Rd2 {[%clk 0:00:16]} 24. Rfe1 {[%clk 0:00:06]}  Ba5 {[%clk 0:00:08]} 25. Ne4 {[%clk 0:00:07]}  Rxa2 {[%clk 0:00:08]} 26. Rxa2 {[%clk 0:00:06]}  Bxe1 {[%clk 0:00:08]} 27. Rxa7 {[%clk 0:00:07]}  Rd4 {[%clk 0:00:08]} 28. Nf6+ {[%clk 0:00:06]}  Kg7 {[%clk 0:00:08]} 29. g5 {[%clk 0:00:07]}  Rd8 {[%clk 0:00:03]} 30. Kg2 {[%clk 0:00:04]}  Bd2 {[%clk 0:00:04]} 31. Kf3 {[%clk 0:00:04]}  Rd4 {[%clk 0:00:04]} 32. Ra8 {[%clk 0:00:03]}  Rxf4+ {[%clk 0:00:02]} 33. Ke2 {[%clk 0:00:04]} 1-0


[Site "https://www.chess.com"]

[Event "Titled Tuesday Blitz March 01 Early 2022"]
[White "Onufrienko, Vladislav"]
[Black "Mikhailov, Viacheslav"]
[WhiteFideId "13804332"]
[BlackFideId "4187369"]
[WhiteElo "1659"]
[BlackElo "2381"]
[Result "0-1"]
[Round "03"]
[TimeControl "180+1"]
[Date "2022.03.01"]
[WhiteClock "0:00:01"]
[BlackClock "0:00:19"]

1. e4 {[%clk 0:03:00]}  c5 {[%clk 0:02:59]} 2. Nf3 {[%clk 0:03:00]}  d6 {[%clk 0:02:57]} 3. d4 {[%clk 0:02:58]}  cxd4 {[%clk 0:02:58]} 4. Nxd4 {[%clk 0:02:59]}  Nf6 {[%clk 0:02:57]} 5. Nc3 {[%clk 0:02:59]}  a6 {[%clk 0:02:55]} 6. Be3 {[%clk 0:02:56]}  e6 {[%clk 0:02:55]} 7. Be2 {[%clk 0:02:53]}  Be7 {[%clk 0:02:55]} 8. g4 {[%clk 0:02:53]}  Qc7 {[%clk 0:02:55]} 9. h4 {[%clk 0:02:49]}  Nc6 {[%clk 0:02:54]} 10. g5 {[%clk 0:02:42]}  Nd7 {[%clk 0:02:53]} 11. h5 {[%clk 0:02:41]}  b5 {[%clk 0:02:52]} 12. a3 {[%clk 0:02:29]}  Bb7 {[%clk 0:02:52]} 13. Qd3 {[%clk 0:02:23]}  Nde5 {[%clk 0:02:49]} 14. Qd2 {[%clk 0:02:16]}  Rc8 {[%clk 0:02:40]} 15. f4 {[%clk 0:02:13]}  Nc4 {[%clk 0:02:28]} 16. Bxc4 {[%clk 0:02:13]}  bxc4 {[%clk 0:02:29]} 17. Ke2 {[%clk 0:01:59]}  Qa5 {[%clk 0:02:22]} 18. g6 {[%clk 0:01:41]}  Nxd4+ {[%clk 0:02:09]} 19. Bxd4 {[%clk 0:01:02]}  hxg6 {[%clk 0:02:07]} 20. hxg6 {[%clk 0:01:01]}  Rxh1 {[%clk 0:02:04]} 21. Rxh1 {[%clk 0:00:59]}  fxg6 {[%clk 0:02:03]} 22. Bxg7 {[%clk 0:00:48]}  Kd7 {[%clk 0:01:55]} 23. Rh7 {[%clk 0:00:40]}  Re8 {[%clk 0:01:24]} 24. Be5 {[%clk 0:00:35]}  Qb6 {[%clk 0:01:13]} 25. Bf6 {[%clk 0:00:18]}  Kd8 {[%clk 0:01:04]} 26. Be5 {[%clk 0:00:11]}  Kc8 {[%clk 0:00:59]} 27. Bd4 {[%clk 0:00:06]}  Qa5 {[%clk 0:00:52]} 28. Qe3 {[%clk 0:00:05]}  Qc7 {[%clk 0:00:36]} 29. Kd1 {[%clk 0:00:04]}  e5 {[%clk 0:00:31]} 30. Bb6 {[%clk 0:00:01]}  exf4 {[%clk 0:00:29]} 31. Qf2 {[%clk 0:00:01]}  Qd7 {[%clk 0:00:26]} 32. Kc1 {[%clk 0:00:01]}  f3 {[%clk 0:00:25]} 33. Kb1 {[%clk 0:00:01]}  Qg4 {[%clk 0:00:19]} 0-1


[Site "https://www.chess.com"]

[Event "Titled Tuesday Blitz March 01 Early 2022"]
[White "Osmonbekov, Talaibek"]
[Black "Samarth, J Rao"]
[WhiteFideId "2017253"]
[BlackFideId "46652370"]
[WhiteElo "2135"]
[BlackElo "1514"]
[Result "0-1"]
[Round "03"]
[TimeControl "180+1"]
[Date "2022.03.01"]
[WhiteClock "0:00:03"]
[BlackClock "0:00:14"]

1. d4 {[%clk 0:02:57]}  Nf6 {[%clk 0:02:56]} 2. Nc3 {[%clk 0:02:57]}  d5 {[%clk 0:02:55]} 3. Bf4 {[%clk 0:02:57]}  g6 {[%clk 0:02:53]} 4. e3 {[%clk 0:02:57]}  Bg7 {[%clk 0:02:53]} 5. h4 {[%clk 0:02:57]}  h5 {[%clk 0:02:48]} 6. Nf3 {[%clk 0:02:55]}  c5 {[%clk 0:02:47]} 7. Ne5 {[%clk 0:02:49]}  Nc6 {[%clk 0:02:45]} 8. Bb5 {[%clk 0:02:25]}  Bd7 {[%clk 0:02:28]} 9. O-O {[%clk 0:02:20]}  O-O {[%clk 0:02:25]} 10. Nxd7 {[%clk 0:02:19]}  Qxd7 {[%clk 0:02:25]} 11. dxc5 {[%clk 0:02:17]}  a6 {[%clk 0:02:21]} 12. Ba4 {[%clk 0:02:10]}  Rfd8 {[%clk 0:02:18]} 13. f3 {[%clk 0:02:05]}  Qf5 {[%clk 0:02:14]} 14. Qd3 {[%clk 0:01:42]}  Qc8 {[%clk 0:02:01]} 15. Rad1 {[%clk 0:01:20]}  e5 {[%clk 0:01:56]} 16. Bg3 {[%clk 0:01:14]}  e4 {[%clk 0:01:51]} 17. Qe2 {[%clk 0:00:59]}  exf3 {[%clk 0:01:46]} 18. gxf3 {[%clk 0:00:57]}  Qh3 {[%clk 0:01:43]} 19. Qg2 {[%clk 0:00:55]}  Qe6 {[%clk 0:01:40]} 20. Rfe1 {[%clk 0:00:52]}  Bh6 {[%clk 0:01:28]} 21. Qf2 {[%clk 0:00:43]}  Kh7 {[%clk 0:01:17]} 22. a3 {[%clk 0:00:39]}  Re8 {[%clk 0:01:01]} 23. Rd3 {[%clk 0:00:33]}  d4 {[%clk 0:00:53]} 24. exd4 {[%clk 0:00:20]}  Qh3 {[%clk 0:00:41]} 25. d5 {[%clk 0:00:19]}  Rxe1+ {[%clk 0:00:35]} 26. Qxe1 {[%clk 0:00:20]}  Re8 {[%clk 0:00:35]} 27. Qf2 {[%clk 0:00:20]}  Ne5 {[%clk 0:00:33]} 28. Rd1 {[%clk 0:00:18]}  Nfg4 {[%clk 0:00:17]} 29. fxg4 {[%clk 0:00:17]}  Nxg4 {[%clk 0:00:17]} 30. Qxf7+ {[%clk 0:00:17]}  Bg7 {[%clk 0:00:16]} 31. Qf4 {[%clk 0:00:15]}  Rf8 {[%clk 0:00:15]} 32. Qe3 {[%clk 0:00:13]}  Nxe3 {[%clk 0:00:15]} 33. Bf2 {[%clk 0:00:03]}  Qg2# {[%clk 0:00:14]} 0-1


[Site "https://www.chess.com"]